Cogmind - Beta 10.2 @@@ ROGUE MODE // 2021.08.13 @ 16:40:36 Player: Sam Result: Destroyed by as-42238 with Assembled Rifle Performance ------------- Evolutions (0) 0 Regions Visited (2) 400 Robots Destroyed (13) 65 Value Destroyed (260) 260 Prototype IDs (2) 40 Alien Tech Used (0) 0 Bonus (0) 0 TOTAL SCORE: 765 Bonus ------- None Cogmind --------- Core Integrity 0/250 Matter 281/300 Energy 88/100 System Corruption 0% Temperature Cool (0) Movement Core (450) Ox8 Location -10/Mines Parts ------- > --- POWER (1) -------- (None) > --- PROPULSION (2) --- (None) > --- UTILITY (2) ------ Medium Storage Unit Large Storage Unit > --- WEAPON (2) ------- Light Assault Rifle Light Assault Rifle > --- INVENTORY (14) --- Ion Engine Light Ion Engine Heat Sink Small Storage Unit Signal Interpreter Signal Interpreter Datajack Mining Laser Peak State ------------ > --- POWER ------------ Light Nuclear Core > --- PROPULSION ------- Aluminum Leg Aluminum Leg > --- UTILITY ---------- Medium Storage Unit Large Storage Unit > --- WEAPON ----------- Light Assault Rifle Light Assault Rifle > --- INVENTORY -------- Light Ion Engine Aluminum Leg Small Storage Unit Signal Interpreter Signal Interpreter Small Laser Light Assault Rifle Light Assault Rifle Datajack Mining Laser [Rating: 10] Favorites ----------- Power Ion Engine Engine Ion Engine Power Core Light Nuclear Core Propulsion Aluminum Leg Leg Aluminum Leg Utility Large Storage Unit Storage Large Storage Unit Weapon Light Assault Rifle Energy Gun EM Pulse Gun Ballistic Gun Light Assault Rifle Build | -11 -10 -10 ------- Run | Scr Mat Min Slots Evolved . | . . . Power . | . . . Propulsion . | . . . Utility . | . . . Weapon . | . . . Parts Attached 19 | 6 3 10 Power 3 | 1 . 2 Engine 2 | 1 . 1 Core 1 | . . 1 Reactor . | . . . Propulsion 4 | 2 . 2 Treads . | . . . Leg 4 | 2 . 2 Wheel . | . . . Hover . | . . . Flight . | . . . Utility 3 | 1 2 . Device . | . . . Storage 3 | 1 2 . Processor . | . . . Hackware . | . . . Protection . | . . . Artifact . | . . . Weapon 9 | 2 1 6 Energy Gun 3 | 1 1 1 Energy Cannon . | . . . Ballistic Gun 6 | 1 . 5 Ballistic Cannon . | . . . Launcher . | . . . Special Weapon . | . . . Impact Weapon . | . . . Slashing Weapon . | . . . Piercing Weapon . | . . . Special Melee Weapon . | . . . Unidentified Prototypes . | . . . Parts Lost 10 | . 1 9 Power 2 | . . 2 Propulsion 3 | . . 3 Utility . | . . . Weapon 5 | . 1 4 Highest Loss Streak 4 | . 1 4 Average Slot Usage (%) 95 | . 95 95 Engine 9 | . 14 4 Core 3 | . . 8 Leg 27 | . 28 25 Storage 27 | . 27 28 Energy Gun 13 | . 16 10 Ballistic Gun 11 | . 7 16 Naked Turns . | . . . Heaviest Build 33 | 12 33 32 Greatest Support 20 | 20 20 20 Greatest Overweight (x) 2 | 2 1 2 Average Overweight (x) . | . . 1 Largest Inventory Capacity 14 | 6 14 14 Average Capacity 13 | 5 13 14 Most Carried 12 | 2 10 12 Average Carried 8 | 1 7 10 Final Capacity 14 | 6 14 14 Final Carried 10 | 2 10 8 Class Distribution -------------------- 100% | Mutant Dominant Class ---------------- Mutant | -10/Materials Mutant | -10/Mines Resources | -11 -10 -10 ----------- Run | Scr Mat Min Matter Collected 401 | 219 78 104 Remotely . | . . . Salvage Created 411 | . 238 173 Parts 31 | . 24 7 Haulers Intercepted . | . . . Recyclers Shooed 1 | . . 1 Parts Field Recycled . | . . . Retrieved Matter . | . . . Parts Self-Destructed . | . . . Prevented . | . . . Kills | -11 -10 -10 ------- Run | Scr Mat Min Combat Hostiles Destroyed 12 | . 7 5 Guns 12 | . 7 5 Classes Destroyed 7 | . 5 2 Worker 1 | . 1 . Builder 1 | . . 1 Operator 1 | . 1 . Watcher 1 | . 1 . Swarmer 5 | . 5 . Grunt 4 | . 2 2 Assembled 3 | . . 3 Best Kill Streak 3 | . 3 2 Combat Bots Only 3 | . 3 2 Max Kills in Single Turn 1 | . 1 1 Gunslinging . | . . . Exploded . | . . . Melee . | . . . Uniques/NPCs Destroyed . | . . . Combat | -11 -10 -10 -------- Run | Scr Mat Min Damage Taken 1192 | . 425 767 Core 261 | . 113 148 Absorbed by Shields . | . . . Core Remaining (%) 100 | 100 . . Volleys Fired 65 | . 31 34 Largest 2 | . 2 2 Hottest 80 | . 80 60 Shots Fired 108 | . 51 57 Gun 108 | . 51 57 Cannon . | . . . Launcher . | . . . Special . | . . . Kinetic 57 | . 7 50 Thermal 4 | . . 4 Explosive . | . . . Electromagnetic 47 | . 44 3 Robot Hit Streak 6 | . 6 5 Robot Miss Streak 6 | . 6 2 Penetration Max . | . . . Secondary Targets 3 | . 1 2 Max Gunslinging Chain 1 | . 1 1 Shots Hit Robots 66 | . 26 40 Core Hits 29 | . 11 18 Critical Hits 1 | . . 1 Critical Kills . | . . . Critical Parts Destroyed 1 | . . 1 Melee Attacks . | . . . Impact . | . . . Slashing . | . . . Piercing . | . . . Sneak Attacks . | . . . Combat Hostiles . | . . . Follow-up Attacks . | . . . Damage Inflicted 709 | . 319 390 Guns 709 | . 319 390 Cannons . | . . . Explosions . | . . . Melee . | . . . Ramming . | . . . Kinetic 358 | . 25 333 Thermal 33 | . . 33 Explosive . | . . . Electromagnetic 318 | . 294 24 Impact . | . . . Slashing . | . . . Piercing . | . . . Highest Corruption . | . . . Average Corruption . | . . . Corruption Purged . | . . . Overload Shots . | . . . Overflow Damage . | . . . Projectiles . | . . . Explosions . | . . . Melee . | . . . Knockbacks . | . . . Impact . | . . . Kinetic . | . . . Secondary . | . . . Self-Inflicted Damage . | . . . Shots . | . . . Rammed . | . . . Targets Rammed . | . . . Kicked . | . . . Crushed . | . . . Highest Temperature 99 | . 99 36 Average Temperature 32 | . 42 11 Received Heat Transfer 171 | . 69 102 Siege Activations . | . . . Robots Corrupted . | . . . Combat Hostiles . | . . . Parts Fried 8 | . 8 . Impact Corruptions . | . . . Robots Melted . | . . . Combat Hostiles . | . . . Parts Melted . | . . . Heat Transferred 75 | . . 75 Parts Sabotaged . | . . . Parts Stolen . | . . . Parts Stripped . | . . . Power Chain Reactions . | . . . Missiles Intercepted . | . . . Alert | -11 -10 -10 ------- Run | Scr Mat Min Peak Influence 163 | . 163 98 Initial 63 | . . 63 Average 66 | . 76 62 Maximum Alert Level . | . . . Low Security (%) 100 | 100 100 100 Level 1 . | . . . Level 2 . | . . . Level 3 . | . . . Level 4 . | . . . Level 5 . | . . . High Security . | . . . Max Security . | . . . Squads Dispatched 2 | . 2 . Investigation 1 | . 1 . Extermination . | . . . Reinforcement 1 | . 1 . Assault . | . . . Garrison . | . . . Intercept . | . . . Construction Impeded . | . . . Haulers Reinforced . | . . . Stealth | -11 -10 -10 --------- Run | Scr Mat Min Distress Signals 1 | . 1 . Communications Jammed . | . . . Distress Signals . | . . . Times Spotted 27 | . 19 8 Peak Tracking Total 3 | . 3 3 Tactical Retreats 3 | . 2 1 Traps | -11 -10 -10 ------- Run | Scr Mat Min Traps Triggered 1 | . 1 . Indirectly . | . . . Trap Hack Attempts . | . . . Triggered . | . . . Disarmed . | . . . Reprogrammed 5 | . 5 . Reused . | . . . Traps Extracted . | . . . Installed . | . . . Triggered 1 | . 1 . Machines | -11 -10 -10 ---------- Run | Scr Mat Min Machines Disabled 1 | . 1 . Max in Single Turn 1 | . 1 . Machines Sabotaged . | . . . Garrisons Compromised . | . . . Overloaded Fab Kills . | . . . Fab Network Shutdowns . | . . . Hacking | -11 -10 -10 --------- Run | Scr Mat Min Machines Accessed 5 | . 5 . Terminals 5 | . 5 . Fabricators . | . . . Repair Stations . | . . . Recycling Units . | . . . Scanalyzers . | . . . Garrison Access . | . . . Total Hacks 20 | . 20 . Successful 12 | . 12 . Failed 7 | . 7 . Catastrophic . | . . . Database Lockouts 1 | . 1 . Manual 1 | . 1 . Terminals 20 | . 20 . Fabricators . | . . . Repair Stations . | . . . Recycling Units . | . . . Scanalyzers . | . . . Garrison Access . | . . . Terminal Hacks 12 | . 12 . Record 5 | . 5 . Prototype ID Bank 1 | . 1 . Alert Level 1 | . 1 . Locate Traps 1 | . 1 . Reprogram Traps 1 | . 1 . Maintenance Status 1 | . 1 . Assault Status 1 | . 1 . Hauler Manifests 1 | . 1 . Fabricator Hacks . | . . . Repair Station Hacks . | . . . Recycling Unit Hacks . | . . . Scanalyzer . | . . . Garrison Access Hacks . | . . . Unauthorized Hacks . | . . . Terminals . | . . . Fabricators . | . . . Repair Stations . | . . . Recycling Units . | . . . Scanalyzers . | . . . Garrison Access . | . . . Data Cores Recovered 1 | . 1 . Used . | . . . Hacking Detections 5 | . 5 . Full Trace Events 1 | . 1 . Feedback Events . | . . . Feedback Blocked . | . . . Robot Schematics Acquired . | . . . Robots Built . | . . . Matter . | . . . Time . | . . . Total Robot Build Rating . | . . . Part Schematics Acquired . | . . . Parts Built . | . . . Matter . | . . . Time . | . . . Total Part Build Rating . | . . . Parts Repaired . | . . . Time . | . . . Parts Recycled . | . . . Recycled Matter . | . . . Retrieved Matter . | . . . Retrieved Components . | . . . Parts Scanalyzed . | . . . Part Schematics Acquired . | . . . Parts Damaged . | . . . Bothacking | -11 -10 -10 ------------ Run | Scr Mat Min Used RIF Installer . | . . . Robots Hacked . | . . . Non-combat . | . . . Combat . | . . . Robot Hacks Applied . | . . . Relay Couplers Released . | . . . Robots Rewired . | . . . Allies Hacked . | . . . Hacks Repelled . | . . . Allies | -11 -10 -10 -------- Run | Scr Mat Min Total Allies . | . . . Largest Group . | . . . Highest-Rated Group . | . . . Highest-Rated Ally . | . . . Total Orders . | . . . Ally Attacks . | . . . Total Damage . | . . . Kills . | . . . Allies Corrupted . | . . . Allies Melted . | . . . Intel | -11 -10 -10 ------- Run | Scr Mat Min Robot Analysis Total . | . . . Derelict Logs Recovered 2 | . . 2 Drone Launches . | . . . Drone Recoveries . | . . . Exploration | -11 -10 -10 ------------- Run | Scr Mat Min Turns Passed 1280 | 68 680 532 Spaces Moved 716 | 45 388 283 Core 12 | 12 . . Treads . | . . . Legs 704 | 33 388 283 Wheels . | . . . Hover . | . . . Flight . | . . . Fastest Speed 50 | 50 120 150 Average Speed 147 | 127 148 150 Slowest Speed 180 | 150 150 180 Overloaded Moves . | . . . Propulsion Burnouts . | . . . Robots Hopped . | . . . Cave-ins Triggered . | . . . Exploration Rate (%) 49 | 3 78 68 Regions Visited 2 Branch Regions 1 Pre-discovered Areas 1 | . . 1 Known Exits Taken . | . . . Unknown Exits Taken 2 | 1 1 . Scrap Searched . | . . . Spaces Dug . | . . . Terrain Destroyed . | . . . Melee . | . . . Projectile . | . . . AOE . | . . . Terrain Rammed . | . . . Walls Destroyed . | . . . Machines Disabled . | . . . Actions | -11 -10 -10 --------- Run | Scr Mat Min Total 835 | 52 440 343 Wait 24 | . 12 12 Move 714 | 44 387 283 Hop . | . . . Pick Up 13 | 2 7 4 Fast Attach 7 | 6 1 . Attach 7 | . . 7 Detach . | . . . Swap 5 | . 2 3 Drop . | . . . Fire 65 | . 31 34 Melee . | . . . Ram . | . . . Kick . | . . . Crush . | . . . Escape Stasis . | . . . Rewire . | . . . Trap . | . . . Miscellaneous . | . . . Route ------- -11/Scrapyard -10/Materials (discovered 3 exits: [*Mat] / [*Min x2]) -10/Mines History --------- Turn | Location | Event 10 | -11/Scrapyard | Discovered new exit (range 16) 69 | -11/Scrapyard | Entered Materials 69 | -10/Materials | Discovered new exit (range 14) 252 | -10/Materials | Discovered new exit (range 16) 305 | -10/Materials | Build established: Mutant 536 | -10/Materials | Central database locked down 693 | -10/Materials | Discovered new exit (range 9) 749 | -10/Materials | Entered Mines 809 | -10/Mines | Met a Derelict bent on vengeance 890 | -10/Mines | Core integrity fell below 50% 1108 | -10/Mines | Learned location of Zion (-7) 1153 | -10/Mines | Assembled infested the area 1192 | -10/Mines | Core integrity fell below 20% 1228 | -10/Mines | Lost 3 parts (1n2w) 1281 | -10/Mines | Destroyed by as-42238 with Assembled Rifle Last Messages --------------- 01167_ T-07 Excavator destroyed. 01175_ Aluminum Leg destroyed. 01177_ as-83954 destroyed. 01177_ Switching to secondary target: as-74755. 01178_ Sml. Laser destroyed. 01197_ Lgt. Assault Rifle destroyed. 01199_ as-74755 destroyed. 01200_ Acquired 13 matter. 01202_ Acquired 12 matter. 01209_ Acquired 10 matter. 01238_ as-54875 sneak attacks. 01239_ R-06 Scavenger collects Seismic Analyzer. 01242_ R-06 Scavenger collects Lgt. Ion Engine. 01258_ Aluminum Leg destroyed. 01263_ Lgt. Nuclear Core destroyed. 01266_ as-54875 destroyed. 01266_ Switching to secondary target: as-84954. 01267_ as-84954 destroyed. 01277_ Critical hit. 01277_ Lgt. Assault Rifle destroyed. Map ----- +----------------------------------------------------+ | | | | | | | | | | | | | | | | | | | | | | | | | | | | | | | | | | | ???????????????????????????????????????????? | | ???????????????????????????????????????????? | | ???????????###??????????#####??????????????? | | ??????????## #???????## ##?????????????? | | ??????????# ######## ##????????????? | | ?????????## #????????????? | | ????????## ######???????? | | ????????# %a ## ##??????? | | ????????# @% #??????? | | ?????????# ## ##### #??????? | | ??????????????????##### #??????? | | ??????????????? #??????? | | ?????????????? #??????? | | ?????????????? ####### ##??????? | | ?????????????????????## ##???????? | | ??????????????????????## #????????? | | ???????????????????????## #????????? | | ????????????????????????# #????????? | | ????????????????????????## #????????? | | ?????????????????????????### ##????????? | | ???????????????????????????## ##?????????? | | ????????????????????????????# #??????????? | | ???????????????????????????## ##?????????? | | ?????????????????????????### #?????????? | | ????????????????????????## %* #?????????? | | ????????????????????????# ##?????????? | | ???????????????????????## ## #??????????? | | ???????????????????????# ### #??????????? | | ??????????????????????# #?#% ############ | | ?????????????????????# ##?# ## # | | ????????????????????# #??# | | ????????????????????# " #??# | | ????????????????????## ##??## # | +----------------------------------------------------+ Best States ------------- Heat Dissipation 25 Energy Generation 14 Energy Capacity 250 Matter Stores 300 Matter Capacity 300 Sight Range 16 Terrain Scan Density 10 Evasion (%) 40 Item Schematics ----------------- None Robot Schematics ------------------ None Fabricated ------------ Nothing Alien Tech Used ----------------- None Achievements -------------- None Challenges ------------ None Game ------ Seed ProcessingCannonChainsword Manual? 0 Play Time 00:16:25 Cumulative 9.5 hours Start 2021.08.13 @ 16:22:15 End 2021.08.13 @ 16:40:36 Sessions 1 Manual Loads 0 Difficulty Rogue Special Mode None Game No. 13 Rogue 13 Adventurer 0 Explorer 0 Win Type - Total 0 Types 0/0/0/0/0/0/0/0/0 Lore% 17 Gallery% 19 Achievement% 13 Wizard Run 0 Options --------- ASCII 0 Keyboard 0 Movement Mouse Keybinds 0 Fullscreen 1 Font 18/Terminus Map View 76x50 Tactical HUD 1 Map Filters NONE Filters NONE Steam 1 RUN: 415c561d-c3a4-4496-a42a-d9b303d8b568